bitfinex/quotes_ETHUSD_20241122
["timestamp","ask_amount","ask_price","bid_price","bid_amount"]
[1732252968385,0.55,3378.3,3377.7,0.2957]
[1732252973533,0.55,3378.3,3376.8,0.42628689]
[1732252973534,0.55,3378.3,3377.9,0.2957]
[1732252975460,1.20866676,3379.0,3377.9,0.2957]
[1732252975620,0.26984825,3378.9,3378.1,0.2497]
[1732252975950,0.67888041,3379.1,3378.1,0.2497]
[1732252975951,0.78004347,3379.0,3378.1,0.2497]
[1732252976153,0.26989001,3378.9,3378.1,0.2497]
[1732252976317,0.26989001,3379.0,3378.1,0.2497]
[1732252976521,0.8282,3379.2,3378.1,0.2497]
[1732252976716,0.43047881,3379.1,3378.1,0.2497]
[1732252976955,0.81995881,3379.0,3378.1,0.2497]
[1732252977120,0.55,3379.0,3378.1,0.2497]
[1732252978957,0.16052,3379.1,3377.9,0.2037]
[1732252979253,0.44651829,3379.0,3378.3,0.2037]
[1732252979459,3.72502109,3378.6,3378.3,0.2037]
[1732252979618,0.26994629,3378.5,3378.3,0.2037]
[1732252979818,0.26985475,3378.4,3378.3,0.2037]
[1732252980019,0.43177609,3378.8,3378.3,0.9629]
[1732252980245,0.81987776,3378.7,3378.3,0.9629]
[1732252980454,0.55,3378.5,3378.3,0.9629]
[1732252980626,0.26989414,3378.6,3378.3,0.9629]
[1732252980627,0.55,3378.7,3378.3,0.9629]
[1732252980829,0.55,3378.5,3378.3,0.9629]
[1732252981050,0.55,3378.3,3377.5,0.2037]
[1732252981833,0.55,3378.1,3377.5,0.2037]
[1732252982249,0.55,3378.3,3377.5,0.2037]
[1732252982459,0.27014388,3378.2,3377.5,0.2037]
[1732252982660,0.27018089,3378.1,3377.5,0.2037]
[1732252983530,0.27018089,3378.0,3377.5,0.2037]
[1732252983838,0.27018089,3377.9,3377.6,0.2037]
[1732252984037,0.27018089,3377.8,3377.6,0.2037]
[1732252984237,0.43243441,3378.1,3377.6,0.2037]
[1732252984433,0.55,3377.9,3377.6,0.2037]
[1732252984767,0.55,3377.7,3377.6,0.2037]
[1732252984972,0.777,3377.8,3377.2,0.2037]
[1732252985283,0.55,3377.6,3377.2,0.2037]
[1732252985568,0.55,3377.4,3376.6,0.2957]
[1732252986167,0.55,3377.2,3376.6,0.2957]
[1732252986936,0.55,3377.0,3376.6,0.2957]
[1732252987176,0.55,3377.2,3376.6,0.2957]
[1732252987379,0.55,3377.0,3376.6,0.2957]
[1732252987736,0.55,3376.8,3376.6,0.2957]
[1732252988161,0.70974142,3376.8,3376.5,0.2957]
[1732252988573,0.55,3376.8,3376.5,0.2957]
[1732252988858,0.55,3376.8,3376.6,0.4632]
[1732252989432,0.777,3377.5,3376.6,0.4632]
[1732252989737,0.55,3377.3,3376.6,0.4632]
[1732252989939,0.43246209,3377.6,3376.6,0.4632]
[1732252989940,0.55,3377.5,3376.6,0.4632]
[1732252990246,0.55,3377.3,3376.6,0.4632]
[1732252990572,0.55,3377.5,3376.6,0.4632]
[1732252990878,0.55,3377.3,3376.6,0.4632]
[1732252992271,0.55,3377.6,3376.6,0.4632]
[1732252992449,1.3063,3377.4,3376.6,0.4632]
[1732252992645,0.55,3377.2,3376.6,0.4632]
[1732252993152,0.27003463,3377.1,3376.6,0.4632]
[1732252993345,0.55,3377.0,3376.6,0.4632]
[1732252993868,0.55,3377.0,3376.4,0.2]
[1732252996378,0.55,3376.8,3376.4,0.2]
[1732252996581,0.55,3376.8,3376.4,0.199146]
[1732252999370,0.55,3376.8,3376.5,0.2957]
[1732252999568,0.55,3376.8,3376.6,0.7639]
[1732252999738,0.55,3376.8,3376.7,0.1957]
[1732252999943,0.7563,3377.3,3376.7,0.1957]
[1732253000257,0.26970217,3377.2,3376.7,0.1957]
[1732253001371,0.55,3377.1,3376.7,0.1957]
[1732253001688,0.55,3376.9,3376.7,0.1957]
[1732253001975,0.15760022,3377.0,3376.7,0.1957]
[1732253001976,0.55,3377.2,3376.7,0.1957]
[1732253002155,0.26973008,3377.1,3376.7,0.1957]
[1732253002342,0.55,3377.0,3376.7,0.1957]
[1732253002542,0.55,3377.2,3376.7,0.1957]
[1732253002882,0.55,3377.0,3376.7,0.1957]
[1732253003456,0.44584676,3377.7,3376.9,0.0957]
[1732253003457,0.55,3377.6,3376.9,0.0957]
[1732253003785,0.26972764,3377.5,3376.9,0.0957]
[1732253003946,0.7563,3377.8,3376.9,0.0957]
[1732253004144,0.26971743,3377.7,3376.9,0.0957]
[1732253004858,0.55,3377.6,3376.9,0.0957]
[1732253005072,0.55,3377.4,3376.9,0.0957]
[1732253005485,0.55,3377.7,3376.9,0.0957]
[1732253005684,0.26973359,3377.6,3376.9,0.0957]
[1732253005998,0.55,3377.5,3376.9,0.0957]
[1732253006207,0.55,3377.7,3377.1,0.0957]
[1732253006363,0.24981364,3377.8,3377.2,0.39076266]
[1732253006567,1.49325548,3378.2,3377.2,0.39076266]
[1732253006568,1.49325548,3378.2,3377.5,0.0957]
[1732253006810,0.49495583,3378.1,3377.5,0.0957]
[1732253006992,0.27000028,3378.0,3377.5,0.0957]
[1732253007308,0.43200046,3378.4,3377.5,0.0957]
[1732253007469,0.2703292,3378.2,3377.5,0.0957]
[1732253007664,0.2703292,3378.2,3377.1,0.7829]
[1732253007665,0.2703292,3378.2,3377.2,0.0957]
[1732253007890,0.47132271,3378.1,3377.2,0.0957]
[1732253008201,0.2703292,3378.0,3377.2,0.0957]
[1732253008696,0.55,3377.9,3377.2,0.0957]
[1732253008903,0.2703292,3377.8,3377.2,0.0957]
[1732253009109,1.3054,3377.7,3377.2,0.0957]
[1732253009280,0.55,3377.5,3377.2,0.0957]
[1732253009475,0.2703292,3377.4,3377.2,0.0957]
[1732253009675,0.55,3377.4,3377.2,0.0957]
[1732253009873,0.55,3377.4,3377.3,0.0957]
[1732253010100,0.82077345,3377.4,3377.3,0.0957]
[1732253010269,1.04908601,3377.4,3377.3,0.0957]
[1732253012360,0.82071137,3377.4,3377.3,0.0957]
[1732253013003,0.55,3377.3,3376.9,0.0957]
[1732253013175,0.55,3377.1,3376.9,0.0957]
[1732253013381,0.82071137,3377.0,3376.9,0.0957]
[1732253013767,0.55,3377.0,3376.9,0.0957]
[1732253014475,0.55,3376.9,3376.5,0.0957]
[1732253014675,0.55,3376.7,3376.5,0.0957]
[1732253014988,0.8212469,3376.6,3376.5,0.0957]
[1732253017190,0.55,3376.6,3376.5,0.0957]
[1732253017385,1.18922487,3377.7,3376.5,1.26936266]
[1732253017696,0.27115186,3377.6,3376.5,0.8786]
[1732253017876,0.27115186,3377.5,3376.5,0.8786]
[1732253018078,0.27115186,3377.4,3376.5,0.8786]
[1732253018673,0.55,3377.3,3376.5,0.8786]
[1732253018994,0.55,3377.1,3376.5,0.8786]
[1732253019184,0.55,3376.9,3376.5,0.8786]
[1732253019515,0.21137445,3376.8,3376.5,0.8786]
[1732253019684,0.5800036,3377.4,3376.5,0.8786]
[1732253020532,3.7554,3377.1,3376.5,0.0957]
[1732253020876,0.43393801,3377.0,3376.5,0.0957]
[1732253022683,0.55,3376.7,3376.5,0.0957]
[1732253030823,0.7755,3376.6,3376.5,0.0957]
[1732253031036,1.5356,3376.6,3376.5,0.0957]
[1732253031189,1.96895645,3376.6,3376.5,0.0957]
[1732253031388,2.23965978,3376.6,3376.5,0.0957]
[1732253031621,1.5356,3376.6,3376.5,0.0957]
[1732253031785,2.23944761,3376.6,3376.5,0.0957]
[1732253034015,0.91394761,3376.6,3376.5,0.0957]
[1732253034213,0.27071062,3376.6,3376.5,0.0957]
[1732253034828,0.7603,3376.9,3376.5,0.0957]
[1732253034829,0.27071062,3376.8,3376.5,0.0957]
[1732253035196,0.7603,3376.9,3376.5,0.0957]
[1732253035400,0.82069835,3376.8,3376.5,0.0957]
[1732253035633,0.55,3376.6,3376.5,0.0957]
[1732253035801,0.82069835,3376.6,3376.5,0.0957]
[1732253036636,0.27069835,3376.6,3376.2,0.749446]
[1732253036836,0.24987197,3376.9,3376.2,0.749446]
[1732253036997,0.27069029,3376.8,3376.2,0.749446]
[1732253037203,0.27069029,3376.8,3376.3,0.2957]
[1732253040947,0.55,3376.7,3376.3,0.2957]
[1732253041104,0.55,3376.5,3376.1,0.2957]
[1732253041300,0.27069029,3376.4,3376.1,0.2957]
[1732253042339,0.43311737,3377.1,3376.3,1.056]
[1732253042540,1.06863892,3377.6,3375.0,0.01]
[1732253042541,0.2708951,3377.5,3376.5,0.2957]
[1732253042841,0.2708951,3377.4,3376.7,0.2957]
[1732253043049,0.2708951,3377.3,3376.7,0.2957]
[1732253043341,0.2708951,3377.2,3376.7,0.2957]
[1732253043536,0.2708951,3377.1,3376.7,0.2957]
[1732253043738,0.2708951,3377.0,3376.8,0.2957]
[1732253043930,0.2708951,3376.9,3376.8,0.2957]
[1732253044407,0.2708951,3377.0,3376.8,0.2957]
[1732253044602,0.2708951,3376.9,3376.8,0.2957]
[1732253044815,0.27106418,3377.0,3376.5,0.2957]
[1732253045068,0.27106418,3376.9,3376.5,0.2957]
[1732253045207,0.48982681,3377.4,3376.7,0.2957]
[1732253045548,0.48425334,3377.3,3376.7,0.2957]
[1732253045701,0.27101718,3377.2,3376.7,0.2957]
[1732253046809,0.27101718,3377.2,3376.8,1.056]
[1732253047127,0.27101718,3377.2,3376.8,0.2957]
[1732253047843,3.7603,3376.9,3376.0,0.2957]
[1732253048046,3.7603,3376.9,3374.3,0.7603]
[1732253048047,3.72502109,3376.6,3374.3,0.7603]
[1732253048265,1.25469719,3376.5,3374.5,0.7603]
[1732253048415,0.27101718,3376.4,3374.6,1.00458847]
[1732253048616,0.27101718,3376.4,3374.8,0.7603]
[1732253048815,0.27101718,3376.3,3375.3,0.2957]
[1732253049147,0.27101718,3376.2,3375.5,0.2957]
[1732253049446,0.27101718,3376.1,3375.5,0.2957]
[1732253049748,0.7603,3376.3,3375.5,0.2957]
[1732253049749,0.27101718,3376.0,3375.5,0.2957]
[1732253049906,0.27101718,3376.2,3375.5,0.2957]
[1732253050122,0.27101718,3376.1,3375.5,0.2957]
[1732253050465,0.27101718,3376.0,3375.5,0.2957]
[1732253050620,0.55,3376.3,3375.5,0.2957]
[1732253050825,0.27095127,3376.2,3375.5,0.2957]
[1732253051655,0.17755801,3376.5,3375.5,0.2957]
[1732253051821,0.27094607,3376.1,3375.7,0.2957]
[1732253052020,0.25773858,3376.6,3375.7,0.2957]
[1732253052021,0.55,3376.5,3375.7,0.2957]
[1732253052252,0.27098353,3376.4,3375.7,0.2957]
[1732253052725,0.27098353,3376.5,3375.7,0.2957]
[1732253052918,0.27098353,3376.4,3375.7,0.2957]
[1732253053146,0.27098353,3376.3,3375.7,0.2957]
[1732253053343,0.27098353,3376.3,3375.6,0.7586]
[1732253053344,0.27098353,3376.2,3374.9,0.2957]
[1732253053548,0.55,3376.7,3375.5,0.2957]
[1732253053735,0.27101904,3376.6,3375.7,0.2957]
[1732253054823,0.7972,3376.5,3375.7,0.2957]
[1732253055020,0.27101904,3376.4,3375.7,0.2957]
[1732253055269,0.27102924,3376.3,3375.7,0.2957]
[1732253055478,0.27102924,3376.2,3375.7,0.2957]
[1732253055636,0.27100218,3376.1,3375.7,0.2957]
[1732253055967,0.22689588,3376.4,3375.7,0.2957]
[1732253055968,0.27099355,3376.0,3375.7,0.2957]
[1732253056265,0.22689588,3376.4,3375.7,0.2957]
[1732253056563,0.27099724,3376.3,3375.7,0.2957]
[1732253056720,0.7972,3376.5,3375.7,0.2957]
[1732253056721,0.27099724,3376.2,3375.7,0.2957]
[1732253056923,0.27099724,3376.1,3375.7,0.2957]
[1732253057172,0.55,3376.3,3375.7,0.2957]
[1732253057351,0.55,3376.1,3375.7,0.2957]
[1732253057669,0.27097562,3376.0,3375.7,0.2957]
[1732253057867,0.55,3376.1,3375.7,0.2957]
[1732253058165,0.27095833,3376.0,3375.7,0.2957]
[1732253058844,0.55,3376.5,3375.7,0.2957]
[1732253059044,0.55,3376.3,3375.7,0.2957]
[1732253059246,0.55,3376.1,3375.7,0.2957]
[1732253059641,0.27092816,3376.0,3375.7,0.2957]
[1732253062146,0.55,3376.1,3375.7,0.2957]
[1732253062433,0.27092756,3376.0,3375.7,0.2957]
[1732253065860,0.55,3376.1,3375.7,0.2957]
[1732253065861,0.2708913,3375.9,3375.7,0.2957]
[1732253066097,0.16180913,3375.9,3375.7,0.2957]
[1732253067246,0.55,3375.8,3374.5,0.2957]
[1732253067446,0.55,3375.8,3375.2,0.8324]
[1732253067769,0.7972,3376.2,3375.3,0.2957]
[1732253067975,0.27083642,3376.1,3375.3,0.2957]
[1732253074999,3.72502109,3375.4,3374.5,0.2957]
[1732253075296,3.72502109,3375.4,3374.2,0.8324]
[1732253075297,0.7941,3375.2,3374.2,0.8324]
[1732253076080,0.7941,3375.2,3374.3,0.2957]
[1732253076253,0.7941,3375.2,3372.6,0.01]
[1732253076254,0.7941,3375.2,3372.8,0.2957]
[1732253076579,0.78916232,3375.1,3373.6,0.2957]
[1732253076763,0.7941,3375.0,3373.6,0.2957]
[1732253077296,0.7941,3374.5,3373.6,0.2957]
[1732253077452,0.45191211,3374.4,3373.6,0.2957]
[1732253077648,0.45191211,3374.4,3373.7,0.2957]
[1732253078684,0.7941,3374.5,3373.7,0.2957]
[1732253079750,0.27038435,3374.4,3373.7,0.2957]
[1732253080207,0.43261497,3374.9,3373.9,0.8324]
[1732253080372,1.58326232,3375.1,3374.2,0.2957]
[1732253080373,0.27047142,3374.8,3374.2,0.2957]
[1732253080566,0.7941,3375.1,3374.2,0.2957]
[1732253080767,0.43318919,3375.0,3374.2,0.2957]
[1732253081000,0.27053919,3374.9,3374.2,0.2957]
[1732253082097,0.2704029,3374.8,3374.2,0.2957]
[1732253082396,0.16265,3375.0,3374.2,0.2957]
[1732253082601,0.27023269,3374.9,3374.2,0.2957]
[1732253083595,0.01,3376.6,3372.3,0.31569023]
[1732253083596,0.8021,3375.4,3374.4,0.7837]
[1732253083801,0.8021,3375.4,3374.5,0.2957]
[1732253083802,0.27020397,3375.3,3374.5,0.2957]
[1732253084364,0.27020397,3375.3,3374.6,1.10903354]
[1732253084599,0.8021,3376.3,3375.2,0.2957]
[1732253084811,0.2702754,3376.2,3375.2,0.2957]
[1732253084961,0.18560754,3376.1,3375.2,0.2957]
[1732253085164,0.8021,3376.3,3375.2,0.2957]
[1732253085401,0.7837,3376.5,3374.2,0.01]
[1732253085402,0.7837,3376.5,3375.5,0.2957]
[1732253085610,0.27028855,3376.4,3375.5,0.2957]
[1732253085769,0.27028855,3376.6,3375.5,0.2957]
[1732253085967,0.27029301,3376.5,3375.5,0.2957]
[1732253086178,0.27029301,3376.4,3375.5,0.2957]
[1732253086467,0.1856093,3376.5,3375.5,0.2957]
[1732253086697,0.27028254,3376.4,3375.5,0.2957]
[1732253087478,0.1856093,3376.5,3375.5,0.2957]
[1732253087742,0.2702967,3376.4,3375.5,0.2957]
[1732253089298,0.2702967,3376.4,3375.4,0.7837]
[1732253090095,0.8021,3376.3,3375.4,0.7837]
[1732253090430,0.2702967,3376.2,3375.4,0.7837]
[1732253091187,0.27023994,3376.1,3375.4,0.7837]
[1732253091509,0.8021,3376.3,3375.4,0.7837]
[1732253091690,0.27025918,3376.2,3375.4,0.7837]
[1732253092386,0.27025918,3376.2,3372.7,3.32532387]
[1732253092387,0.27025918,3376.2,3374.1,0.7837]
[1732253092604,0.27025918,3376.2,3374.8,0.2957]
[1732253094514,0.8021,3376.1,3374.7,1.0794]
[1732253094744,0.27025918,3376.0,3374.8,0.7837]
[1732253094888,0.17540589,3376.0,3374.8,0.7837]
[1732253095086,0.27025339,3375.9,3374.8,0.7837]
[1732253095316,0.24931585,3376.3,3374.8,0.7837]
[1732253095520,0.8021,3376.4,3374.8,0.7837]
[1732253095521,0.27028989,3376.2,3374.8,0.7837]
[1732253095722,0.27028989,3376.1,3374.8,0.7837]
[1732253095885,0.27028989,3376.0,3374.8,0.7837]
[1732253096089,1.05252381,3376.4,3374.8,0.7837]
[1732253096326,0.16705385,3376.3,3374.8,0.7837]
[1732253096503,0.43734114,3376.3,3374.8,0.7837]
[1732253096703,0.27028729,3376.2,3374.8,0.7837]
[1732253098495,0.16705385,3376.3,3374.8,0.7837]
[1732253098808,0.27026368,3376.2,3374.8,0.7837]
[1732253098993,0.14898413,3376.1,3374.8,0.7837]
[1732253099194,0.27026368,3376.0,3374.8,0.7837]
[1732253099416,0.27026368,3376.0,3375.1,0.2957]
[1732253100538,0.8021,3375.9,3375.1,0.2957]
[1732253100824,0.27026368,3375.8,3375.1,0.2957]
[1732253100998,0.27026368,3375.8,3373.8,0.2957]
[1732253101204,0.270137,3375.7,3374.4,0.2957]
[1732253101395,0.270137,3375.6,3374.6,0.2957]
[1732253101592,0.55,3375.6,3374.6,0.2957]
[1732253101791,3.0,3375.8,3374.6,0.2957]
[1732253101792,0.55,3375.4,3374.6,0.2957]
[1732253102028,1.07218625,3375.3,3374.6,0.2957]
[1732253102188,0.55,3375.4,3374.6,0.2957]
[1732253102189,0.82008625,3375.2,3374.6,0.2957]
[1732253102391,0.8021,3375.0,3374.3,0.2957]
[1732253102611,0.27008625,3374.9,3374.3,0.2957]
[1732253103226,0.2461678,3375.4,3374.5,0.2957]
[1732253103429,0.8021,3375.6,3374.7,0.2957]
[1732253103430,0.27000288,3375.3,3374.7,0.2957]
[1732253103739,0.27000288,3375.2,3374.7,0.2957]
[1732253103906,0.27000288,3375.1,3374.7,0.2957]
[1732253104233,0.8021,3375.6,3374.7,0.2957]
[1732253104540,0.27005935,3375.5,3374.7,0.2957]
[1732253104698,0.27014891,3375.4,3374.7,0.2957]
[1732253104897,0.27014891,3375.3,3374.7,0.2957]
[1732253105118,0.27014891,3375.5,3374.7,0.2957]
[1732253105393,0.27014891,3375.4,3374.7,0.2957]
[1732253105621,0.27014891,3375.3,3374.7,0.2957]
[1732253105822,0.27014891,3375.2,3374.7,0.2957]
[1732253106023,0.15157879,3375.1,3374.7,0.2957]
[1732253106231,1.05247343,3375.6,3374.7,0.2957]
[1732253106595,0.8021,3375.6,3374.7,0.2957]
[1732253106935,0.43223825,3376.1,3374.7,0.2957]
[1732253106936,0.8021,3376.0,3374.7,0.2957]
[1732253107233,0.8021,3375.9,3374.7,0.2957]
[1732253107447,0.8021,3375.8,3374.7,0.2957]
[1732253107926,0.55,3375.7,3374.7,0.2957]
[1732253110037,0.8021,3375.7,3374.7,0.2957]
[1732253110246,0.17843383,3375.6,3374.7,0.2957]
[1732253110424,0.55,3375.6,3374.7,0.2957]
[1732253113335,0.79778996,3375.6,3374.7,0.2957]
[1732253115230,0.24778996,3375.6,3373.7,0.55]
[1732253115554,0.43223825,3375.9,3374.4,0.2957]
[1732253115747,0.43223825,3375.9,3373.8,0.24411547]
[1732253115748,0.24628295,3375.9,3374.8,0.2957]
[1732253116052,0.7758,3376.0,3374.8,0.2957]
[1732253117611,0.7758,3376.0,3374.2,0.2957]
[1732253117837,0.7758,3376.0,3374.6,0.2957]
[1732253118146,0.27040846,3375.9,3375.2,0.2957]
[1732253118327,0.27040846,3375.8,3375.6,0.2957]
[1732253118527,1.02492942,3376.5,3375.6,0.2957]
[1732253118738,0.426476,3376.4,3375.6,0.2957]
[1732253118915,0.270526,3376.3,3375.6,0.2957]
[1732253119953,0.55,3376.2,3375.6,0.2957]
[1732253120112,0.55,3376.0,3375.6,0.2957]
[1732253120315,0.27059715,3375.9,3375.6,0.2957]
[1732253120550,0.27059715,3375.8,3375.6,0.2957]
[1732253120758,0.55,3376.2,3375.6,0.2957]
[1732253121055,0.27059406,3376.1,3376.0,0.2957]
[1732253121412,1.21665544,3376.7,3376.0,0.2957]
[1732253121615,0.46982447,3376.6,3376.0,0.2957]
[1732253121851,0.27057893,3376.5,3376.0,0.2957]
[1732253122518,0.55,3376.4,3376.0,0.2957]
[1732253122737,0.55,3376.2,3376.0,0.2957]
[1732253122915,0.27055537,3376.1,3376.0,0.2957]
[1732253123165,0.82055537,3376.1,3376.0,0.2957]
[1732253123542,0.19924554,3376.6,3376.0,0.2957]
[1732253123743,0.27059987,3376.5,3375.2,0.2957]
[1732253123922,0.27059987,3376.5,3375.6,0.2957]
[1732253124255,1.03742057,3376.7,3376.0,0.2957]
[1732253124256,0.27059987,3376.4,3376.0,0.2957]
[1732253124429,0.7758,3377.2,3376.0,0.2957]
[1732253124629,0.27057597,3377.1,3376.1,0.7772]
[1732253124826,0.55,3376.6,3376.1,0.7772]
[1732253125025,0.27057597,3376.5,3376.1,0.7772]
[1732253125428,0.27057597,3376.5,3376.4,0.2957]
[1732253125761,0.24938907,3377.2,3376.4,0.2957]
[1732253125997,0.55,3377.0,3376.4,0.2957]
[1732253126175,0.27051125,3376.9,3376.7,0.7772]
[1732253126482,0.43288859,3378.2,3377.0,1.0704]
[1732253126668,0.27040933,3378.4,3377.4,0.2957]
[1732253126843,0.812,3378.5,3377.6,0.2957]
[1732253126844,0.27040933,3378.3,3377.6,0.2957]
[1732253127029,0.2957,3378.0,3377.6,0.2957]
[1732253127226,0.24654337,3378.5,3377.8,0.2957]
[1732253127537,0.7747,3378.6,3378.0,0.2957]
[1732253127724,0.2700433,3378.5,3378.0,0.2957]
[1732253128368,0.7747,3378.6,3378.0,0.2957]
[1732253128527,1.08168117,3378.5,3378.0,0.2957]
[1732253128730,0.45531929,3378.4,3378.0,0.2957]
[1732253128942,0.18563812,3378.4,3378.0,0.2957]
[1732253129224,0.18563812,3378.4,3377.9,0.7747]
[1732253129628,0.55,3378.3,3377.9,0.7747]
[1732253130029,0.43108742,3379.0,3377.9,0.7747]
[1732253130230,0.25694158,3379.2,3378.4,0.2957]
[1732253130464,1.39394282,3380.4,3378.6,0.7747]
[1732253130465,1.46646178,3379.7,3378.6,0.7747]
[1732253130650,0.22411618,3379.6,3378.7,1.44554077]
[1732253130861,0.25663953,3379.7,3378.7,1.44554077]
[1732253131036,1.44217678,3380.2,3378.8,0.7747]
[1732253131365,2.63539999,3380.1,3378.8,2.20669629]
[1732253132132,1.45374099,3380.1,3378.8,2.20669629]
[1732253132360,0.55,3380.1,3378.9,2.3038858]
[1732253132883,0.55,3380.1,3378.9,0.7747]
[1732253134179,0.8318,3380.0,3378.9,0.7747]
[1732253134348,0.8318,3380.0,3377.2,0.01]
[1732253134349,0.55,3379.9,3378.1,0.2957]
[1732253134548,0.55,3379.7,3378.1,0.2957]
[1732253134785,0.55,3379.7,3378.0,0.8066]
[1732253134979,0.55,3379.5,3378.0,0.8066]
[1732253135489,0.55,3379.3,3378.0,0.8066]
[1732253135656,0.55,3379.1,3378.0,0.8066]
[1732253136376,0.55,3378.3,3378.0,0.8066]
[1732253138279,3.72502109,3378.8,3378.0,0.8066]
[1732253138487,3.0,3379.3,3378.0,0.8066]
[1732253138488,3.72502109,3379.2,3378.0,0.8066]
[1732253138695,0.22351065,3379.3,3378.0,0.8066]
[1732253138984,0.22351065,3379.3,3377.2,0.01]
[1732253138985,0.22351065,3379.3,3378.2,0.8066]
[1732253139187,1.65723655,3379.4,3378.2,0.8066]
[1732253139344,1.65723655,3379.4,3377.3,0.01]
[1732253139345,1.65723655,3379.4,3378.5,0.2957]
[1732253139550,1.65723655,3379.4,3378.7,0.2957]
[1732253139750,0.6108194,3379.3,3378.7,0.2957]
[1732253140555,0.8318,3379.9,3378.7,0.2957]
[1732253140556,4.45095748,3379.7,3378.7,0.2957]
[1732253141403,0.55,3379.6,3378.7,0.2957]
[1732253141699,0.55,3379.2,3378.7,0.2957]
[1732253141869,0.50009575,3379.1,3378.7,0.2957]
[1732253142071,0.55,3379.0,3378.7,0.2957]
[1732253142997,0.55,3379.0,3378.8,0.2957]
[1732253143398,0.55,3378.8,3378.5,0.2957]
[1732253143585,0.55509575,3378.7,3378.5,0.2957]
[1732253143765,0.55,3378.6,3378.4,0.2957]
[1732253145665,0.55,3378.6,3378.3,0.8082]
[1732253145666,0.55,3378.4,3377.6,0.2957]
[1732253146061,4.45095748,3378.1,3377.6,0.2957]
[1732253146299,0.55,3378.0,3377.6,0.2957]
[1732253146980,0.55,3378.0,3376.5,0.2957]
[1732253146981,4.45095748,3377.7,3376.5,0.2957]
[1732253147170,0.55,3377.2,3376.5,0.2957]
[1732253147965,4.45095748,3377.7,3376.5,0.2957]
[1732253148188,0.55,3377.6,3376.8,0.2957]
[1732253148506,1.07725575,3377.6,3376.8,0.2957]
[1732253149266,1.07725575,3377.6,3376.7,0.8082]
[1732253151465,0.55,3377.9,3376.7,0.8082]
[1732253151668,0.55,3378.0,3376.7,0.8082]
[1732253152176,0.98117433,3378.3,3376.7,0.8082]
[1732253152393,0.55,3378.1,3376.7,0.8082]
[1732253152596,0.55,3377.9,3376.7,0.8082]
[1732253153767,0.26980906,3377.8,3376.7,0.8082]
[1732253153965,3.8216,3378.0,3376.7,0.8082]
[1732253153966,0.55,3377.7,3376.7,0.8082]
[1732253154415,0.55,3377.8,3376.7,0.8082]
[1732253154564,0.55,3377.9,3376.7,0.8082]
[1732253155400,0.55,3377.7,3376.7,0.8082]
[1732253155573,0.55,3377.9,3376.7,0.8082]
[1732253155776,0.55,3377.7,3376.7,0.8082]
[1732253159320,0.55,3377.7,3376.8,1.0729]
[1732253159612,1.3582,3378.0,3376.8,1.0729]
[1732253160382,0.52012173,3378.1,3377.2,0.2957]
[1732253160607,1.0729,3378.6,3377.6,0.2957]
[1732253161112,0.7971,3379.0,3377.6,0.2957]
[1732253161313,1.04745163,3378.9,3377.6,0.2957]
[1732253161533,3.72532227,3378.4,3377.8,0.2957]
[1732253161818,0.55,3378.2,3377.4,0.2957]
[1732253162015,0.55,3378.0,3377.4,0.2957]
[1732253162177,0.2702116,3377.9,3377.4,0.2957]
[1732253162378,0.55,3377.8,3377.4,0.2957]
[1732253162597,0.55,3378.0,3377.4,0.2957]
[1732253162923,0.55,3377.8,3375.4,0.01]
[1732253163078,0.55,3377.6,3375.4,0.01]
[1732253163397,1.3471,3377.6,3375.4,0.02961662]
[1732253163573,0.55,3377.4,3375.4,0.02961662]
[1732253163774,1.3471,3377.6,3375.4,0.02961662]
[1732253163775,0.55,3377.2,3375.4,0.02961662]
[1732253163979,0.21675516,3377.3,3375.5,0.2957]
[1732253164205,0.55,3377.8,3375.6,0.02961531]
[1732253164418,0.55,3377.8,3375.6,0.03961531]
[1732253164419,0.55,3377.6,3375.6,0.03961531]
[1732253164623,0.27052653,3377.5,3375.6,0.03961531]
[1732253164915,0.55,3377.4,3375.8,0.2957]
[1732253165120,0.55,3377.6,3376.4,0.2957]
[1732253165289,0.55,3377.4,3376.8,0.2957]
[1732253165888,0.55,3377.5,3376.8,0.2957]
[1732253166080,0.55,3377.3,3376.8,0.2957]
[1732253166591,0.55,3377.1,3376.8,0.2957]
[1732253167376,0.55,3377.1,3376.9,0.2957]
[1732253167727,0.82046156,3377.0,3376.9,0.2957]
[1732253169529,0.55,3376.9,3376.4,0.2957]
[1732253169821,0.55,3376.7,3376.4,0.2957]
[1732253170022,0.55,3376.9,3376.4,0.2957]
[1732253170211,0.27052287,3376.8,3376.4,0.2957]
[1732253170426,0.55,3376.7,3376.4,0.2957]
[1732253172303,0.27099904,3376.6,3376.4,0.2957]
[1732253172641,0.01,3378.3,3376.4,0.2957]
[1732253172642,1.18909952,3377.6,3376.4,0.2957]
[1732253172829,0.27101061,3377.5,3376.4,0.2957]
[1732253174348,0.7563,3377.6,3376.4,0.2957]
[1732253174349,0.55,3377.3,3376.4,0.2957]
[1732253174646,0.55,3377.1,3376.4,0.2957]
[1732253174947,0.27121048,3377.0,3376.4,0.2957]
[1732253177939,0.27164373,3376.9,3376.4,0.2957]
[1732253178132,0.27164373,3376.8,3376.4,0.2957]
[1732253178332,0.55,3377.3,3376.4,0.2957]
[1732253178542,0.55,3377.1,3376.4,0.2957]
[1732253178711,0.27172794,3377.0,3376.4,0.2957]
[1732253179436,0.55,3376.9,3376.4,0.2957]
[1732253179640,0.55,3376.7,3376.3,0.7772]
[1732253179839,0.27172794,3376.6,3376.3,0.7772]
[1732253181426,0.55,3377.2,3376.3,0.7772]
[1732253181740,0.55,3377.0,3376.3,0.7772]